Workbook

Sheet Calk Umum
A1: V. CATATAN ATAS LAPORAN KEUANGAN
B2: BAB I
B3: PENDAHULUAN
B5: 1.1 | C5: Maksud Dan Tujuan Penyusunan Laporan Keuangan
C7: a. | D7: Maksud
C8: ="Laporan Keuangan "&'[1]2.ISIAN DATA SKPD'!D2&" disusun untuk menyediakan informasi yang relevan mengenai posisi keuangan dan seluruh transaksi yang dilakukan oleh "&'[1]2.ISIAN DATA SKPD'!D2&" selama satu periode pelaporan." -> Laporan Keuangan Dinas Pekerjaan Umum dan Penataan Ruang disusun untuk menyediakan informasi yang relevan mengenai posisi keuangan dan seluruh transaksi yang dilakukan oleh Dinas Pekerjaan Umum dan Penataan Ruang selama satu periode pelaporan.
C9: ="Laporan keuangan digunakan untuk membandingkan realisasi pendapatan dan belanja dengan anggaran yang telah ditetapkan. "&'[1]2.ISIAN DATA SKPD'!D2&" selaku entitas pelaporan mempunyai kewajiban untuk melaporkan upaya-upaya yang telah berstruktur pada suatu periode pelaporan." -> Laporan keuangan digunakan untuk membandingkan realisasi pendapatan dan belanja dengan anggaran yang telah ditetapkan. Dinas Pekerjaan Umum dan Penataan Ruang selaku entitas pelaporan mempunyai kewajiban untuk melaporkan upaya-upaya yang telah berstruktur pada suatu periode pelaporan.
C10: ="Maksud Penyusunan Laporan Keuangan "&'[1]2.ISIAN DATA SKPD'!D2&" Kabupaten Wonosobo adalah untuk menggambarkan dan menjelaskan target pencapaian realisasi keuangan berdasarkan rencana yang telah ditetapkan." -> Maksud Penyusunan Laporan Keuangan Dinas Pekerjaan Umum dan Penataan Ruang Kabupaten Wonosobo adalah untuk menggambarkan dan menjelaskan target pencapaian realisasi keuangan berdasarkan rencana yang telah ditetapkan.
C11: b. | D11: Tujuan
C12: Tujuan umum laporan keuangan adalah menyajikan informasi mengenai posisi keuangan, realisasi anggaran, dan kinerja keuangan suatu entitas akuntansi yang bermanfaat bagi para pengguna dalam membuat dan mengevaluasi keputusan mengenai alokasi sumber daya, dengan :
C13: Untuk mewujudkannya akan dilakukan beberapa langkah-langkah strategis sebagai berikut:
C14: - | D14: menyediakan informasi mengenai sumber daya ekonomi, kewajiban, dan ekuitas dana pemerintah;
C15: - | D15: menyedikan informasi mengenai perubahan posisi sumber daya ekonomi. kewajiban, dan ekuitas dana pemerintah;
C16: - | D16: menyediakan informasi mengenai sumber, alokasi dan penggunaan sumber ekonomi;
C17: - | D17: menyediakan informasi mengenai ketaatan realisasi terhadap anggarannya;
C18: - | D18: menyediakan informasi mengenai cara entitas pelaporan mendanai aktivitasnya dan memenuhi kebutuhan kasnya;
C19: - | D19: menyediakan informasi mengenai potensi pemerintah untuk membiayai penyelenggaraan pemerintahan;
C20: - | D20: menyediakan informasi yang berguna untuk mengevaluasi kemampuan entitas pelaporan dalam mendanai aktivitasnya.
C21: Tujuan spesifik laporan keuangan adalah untuk menyajikan informasi yang berguna untuk pengambilan keputusan dan untuk menunjukkan transparansi dan akuntabilitas entitas akuntansi atas sumber daya yang dipercayakan kepadanya sebagai bentuk pertanggungjawaban atas pelaksanaan APBD.
C22: ="Laporan Keuangan "&'[1]2.ISIAN DATA SKPD'!D2&"Kabupaten Wonosobo terdiri dari :" -> Laporan Keuangan Dinas Pekerjaan Umum dan Penataan RuangKabupaten Wonosobo terdiri dari :
C23: 1. Laporan Realisasi Anggaran
C24: 2. Neraca
C25: 3. Laporan Operasional
C26: 4. Laporan Perubahan Ekuitas
C27: 5. Catatan Atas Laporan Keuangan
B29: 1.2 | C29: Landasan Hukum
C30: ="Sebagaimana halnya dengan proses Penyusunan APBD dan Perubahan APBD, maka dalam penyusunan Pertanggungjawaban Pelaksanaan Anggaran Pendapatan dan Belanja "&'[1]2.ISIAN DATA SKPD'!D2&" Kabupaten Wonosobo Tahun Anggaran "&'[1]2.ISIAN DATA SKPD'!D11&" ini tetap berpedoman pada ketentuan dan peraturan perundang-undangan yang berlaku." -> Sebagaimana halnya dengan proses Penyusunan APBD dan Perubahan APBD, maka dalam penyusunan Pertanggungjawaban Pelaksanaan Anggaran Pendapatan dan Belanja Dinas Pekerjaan Umum dan Penataan Ruang Kabupaten Wonosobo Tahun Anggaran 2017 ini tetap berpedoman pada ketentuan dan peraturan perundang-undangan yang berlaku.
C31: Suatu entitas pelaporan mengungkapkan hal – hal berikut ini apabila belum diungkapkan dalam bagian manapun dari laporan keuangan, antara lain :
C32: 1 | D32: Undang-undang Nomor 17 Tahun 2003 tentang Keuangan Negara;
C33: =C32+1 -> 2 | D33: Undang-undang Nomor 1 Tahun 2004 tentang Perbendaharaan Negara;
C34: =C33+1 -> 3 | D34: Undang-undang Nomor 23 Tahun 2014 tentang Pemerintahan Daerah sebagaimana telah diubah terakhir dengan Undang-undang Nomor 9 Tahun 2015 tentang Perubahan Kedua Atas Undang-undang Nomor 23 Tahun 2014 tentang Pemerintahan Daerah;
C35: 4 | D35: Undang-undang Nomor 33 Tahun 2004, tentang Perimbangan Keuangan antara Pemerintah Pusat dan Pemerintah Daerah;
C36: 5 | D36: Undang-undang Nomor 28 Tahun 2009, tentang Pajak Daerah dan Retribusi Daerah;
C37: 6 | D37: Peraturan Pemerintah Nomor 23 tahun 2005 tentang Pengelolaan Keuangan Badan Layanan Umum;
C38: 7 | D38: Peraturan Pemerintah Nomor 55 tahun 2005 tentang Dana Perimbangan;
C39: 8 | D39: Peraturan Pemerintah Nomor 58 tahun 2005 tentang Pengelolaan Keuangan Daerah;
C40: 9 | D40: Peraturan Pemerintah Nomor 8 Tahun 2006 tentang Pelaporan Keuangan dan Kinerja Instansi Pemerintah;
C41: 10 | D41: Peraturan Pemerintah Nomor 71 Tahun 2010 tentang Standar Akuntansi Pemerintahan;
C42: 11 | D42: Peraturan Pemerintah Nomor 27 Tahun 2014 tentang Pengelolaan Barang Milik Negara/Daerah;
C43: 12 | D43: Peraturan Pemerintah Nomor 38 Tahun 2016 tentang Tata Cara Tuntutan Ganti Kerugian Negara/Daerah Terhadap Pegawai Negeri Bukan Bendahara atau Pejabat Lain;
C44: 13 | D44: Peraturan Badan Pemeriksa Keuangan RI Nomor 3 Tahun 2007 tentang Tata Cara Penyelesaian Ganti Keugian Negara;
C45: 14 | D45: Peraturan Menteri Dalam Negeri Nomor 5 Tahun 1997 tentang Tuntutan Perbendaharaan dan Tuntutan Ganti Rugi Keuangan dan Barang Daerah;
C46: 15 | D46: Peraturan Menteri Dalam Negeri Nomor 61 Tahun 2007 tentang Pedoman Teknis Pengelolaan Badan Layanan Umum Daerah;
C47: 16 | D47: Peraturan Menteri Dalam Negeri Nomor 21 Tahun 2011 tentang Perubahan Kedua Atas Peraturan Menteri Dalam Negeri Nomor 13 tahun 2006 tentang Pedoman Pengelolaan Keuangan Daerah;
C48: 17 | D48: Peraturan Menteri Dalam Negeri Nomor 19 Tahun 2016 tentang Pedoman Pengelolaan Barang Milik Daerah;
C49: 18 | D49: Peraturan Daerah Kabupaten Wonosobo Nomor 13 Tahun 2007 tentang Pengelolaan Keuangan Daerah Kabupaten Wonosobo (Lembaran Daerah Kabupaten Wonosobo Tahun 2008 Nomor 2, Tambahan Lembaran Daerah Kabupaten Wonosobo Tahun 2008 Nomor 2);
C50: 19 | D50: Peraturan Daerah Kabupaten Wonosobo Nomor 12 Tahun 2016 tentang Organisasi Pemerintah Daerah Kabupaten Wonosobo;
C51: 20 | D51: Peraturan Bupati Wonosobo Nomor 19 Tahun 2014 tentang Sistem Akuntansi Pemerintah Kab. Wonosobo ;
C52: 21 | D52: Peraturan Bupati Wonosobo Nomor 30 Tahun 2016 tentang Kebijakan Akuntansi Pemerintah Kabupaten Wonosobo;
C53: 22 | D53: Peraturan Daerah Kabupaten Wonosobo Nomor 13 Tahun 2016 tentang Anggaran Pendapatan dan Belanja Daerah Tahun Anggaran 2017 ;
C54: 23 | D54: Peraturan Bupati Wonosobo Nomor 17 Tahun 2016 tentang Sistem dan Prosedur Pengelolaan Keuangan Daerah.
C55: 24 | D55: Peraturan Daerah Kabupaten Wonosobo Nomor 14 Tahun 2017 tentang Perubahan Anggaran Pendapatan dan Belanja Daerah Tahun Anggaran 2017 ;
B57: 1.3 | C57: Sistematika Penulisan Catatan atas Laporan Keuangan
C58: ="Catatan Atas Laporan Keuangan "&'[1]2.ISIAN DATA SKPD'!D2&" Kabupaten Wonosobo Tahun Anggaran "&'[1]2.ISIAN DATA SKPD'!D11&" disusun agar dapat digunakan oleh pengguna dalam memahami dan membandingkannya dengan laporan keuangan entitas lainnya, Catatan atas Laporan Keuangan sekurang – kurangnya disajikan dengan susunan sebagai berikut :" -> Catatan Atas Laporan Keuangan Dinas Pekerjaan Umum dan Penataan Ruang Kabupaten Wonosobo Tahun Anggaran 2017 disusun agar dapat digunakan oleh pengguna dalam memahami dan membandingkannya dengan laporan keuangan entitas lainnya, Catatan atas Laporan Keuangan sekurang – kurangnya disajikan dengan susunan sebagai berikut :
C59: Bab. I Pendahuluan
C60: 1.1. Maksud dan Tujuan Penyusunan Laporan Keuangan
C61: 1.2. Landasan Hukum Penyusunan Laporan Keuangan
C62: 1.3. Sistematika Penulisan Catatan atas Laporan Keuangan
C63: Bab. II Ikhtisar pencapaian kinerja keuangan
C64: 2.1. | D64: Ikhtisar realisasi pencapaian target kinerja keuangan
C65: 2.2. | D65: Hambatan dan Kendala yang ada dalam pencapaian target yang telah ditetapkan
C66: Bab. III Penjelasan pos-pos laporan keuangan
C67: 3.1. Laporan Realisasi Anggaran
D68: 3.1.1. Pendapatan LRA
D69: 3.1.2. Belanja LRA
C70: 3.2. Neraca
D71: 3.2.1. Aset
D72: 3.2.2. Kewajiban
D73: 3.2.3. Ekuitas
C74: 3.3. Laporan Operasional
D75: 3.3.1. Pendapatan LO
D76: 3.3.2. Beban LO
D77: 3.3.3. Surplus / Defisit
C78: 3.4. Laporan Perubahan ekuitas
D79: 3.4.1. Perubahan ekuitas
C80: Bab. IV Penjelasan Atas Informasi Non Keuangan
C81: Bab. V Penutup
A112: BAB II
A113: IKHTISAR PENCAPIAN KINERJA KEUANGAN
B115: 2.1 | C115: Iktisar Realisasi Pencapaian Target Kinerja Keuangan.
B116: ="2.1.1. Ringkasan Laporan Realisasi Anggaran Tahun Anggaran "&'[1]2.ISIAN DATA SKPD'!D11&"" -> 2.1.1. Ringkasan Laporan Realisasi Anggaran Tahun Anggaran 2017
C117: ="Selama periode berjalan, "&'[1]2.ISIAN DATA SKPD'!D2&" telah mengadakan revisi Dokumen Pelaksanaan Anggaran Perubahan (DPAP) dari DPA awal. " -> Selama periode berjalan, Dinas Pekerjaan Umum dan Penataan Ruang telah mengadakan revisi Dokumen Pelaksanaan Anggaran Perubahan (DPAP) dari DPA awal.
C118: Hal ini disebabkan oleh adanya program penghematan belanja pemerintah dan adanya perubahan kegiatan sesuai dengan kebutuhan dan situasi serta kondisi pada saat pelaksanaan. Perubahan tersebut berdasarkan sumber pendapatan dan jenis belanja adalah sebagai berikut:
A120: Uraian | G120: Anggaran Penetapan | L120: Anggaran Perubahan | Q120: Naik/ (Turun)
A122: Pendapatan
A123: Pendapatan Asli daerah | G123: ='[1]3.LRA'!D5 -> 185,000,000 | L123: ='[1]3.LRA'!E5 -> 185,000,000 | Q123: =L123-G123 -> 0
A124: Pendapatan Transfer | G124: ='[1]3.LRA'!D6 -> 0 | L124: ='[1]3.LRA'!E6 -> 0 | Q124: 0
A125: Lain-Lain Pendaptn. Yang Sah | G125: ='[1]3.LRA'!D7 -> 105,000,000 | L125: ='[1]3.LRA'!E7 -> 105,000,000 | Q125: 0
A126: Jumlah Pendapatan | G126: =SUM(G123:K125) -> 290,000,000 | L126: =SUM(L123:P125) -> 290,000,000 | Q126: 0
A127: Belanja | Q127: 0
A128: Belanja Operasi | G128: ='[1]3.LRA'!D10 -> 28,747,046,620 | L128: ='[1]3.LRA'!E10 -> 31,158,545,710 | Q128: 2,411,499,090
A129: Belanja Modal | G129: ='[1]3.LRA'!D11 -> 125,287,058,010 | L129: ='[1]3.LRA'!E11 -> 120,018,163,510 | Q129: (5,268,894,500)
A130: Belanja Tak Terduga | G130: ='[1]3.LRA'!D12 -> 0 | L130: ='[1]3.LRA'!E12 -> 0 | Q130: 0
A131: Belanja Transfer | G131: ='[1]3.LRA'!D13 -> 0 | L131: ='[1]3.LRA'!E13 -> 0 | Q131: 0
A132: Jumlah Belanja | G132: =SUM(G128:M131) -> 305,210,813,850 | L132: =SUM(L128:Q131) -> 148,319,313,810 | Q132: =SUM(Q128:U131) -> (2,857,395,410)
A133: Surplus /Defisit | G133: =G126-G132 -> (304,920,813,850) | L133: =L126-L132 -> (148,029,313,810) | Q133: =Q126-Q132 -> 2,857,395,410
C135: ="Realisasi Pendapatan, Belanja dan Pembiayaan untuk periode yang berakhir pada tanggal "&'[1]2.ISIAN DATA SKPD'!D10&" sebagaimana tabel dibawah ini :" -> Realisasi Pendapatan, Belanja dan Pembiayaan untuk periode yang berakhir pada tanggal 31 Desember 2017 sebagaimana tabel dibawah ini :
A137: ="Ikhtisar Anggaran dan Realisasi TA "&'[1]2.ISIAN DATA SKPD'!D11&"" -> Ikhtisar Anggaran dan Realisasi TA 2017
A138: Uraian | E138: Anggaran Setelah Perubahan | K138: ="Realisasi TA "&'[1]2.ISIAN DATA SKPD'!D11&"" -> Realisasi TA 2017 | P138: Lebih/(Kurang) dari Anggaran | T138: %
A139: Pendapatan dan Belanja
A140: Pendapatan | E140: ='[1]3.LRA'!D18 -> 290,000,000 | K140: ='[1]3.LRA'!E18 -> 534,830,700 | P140: =K140-E140 -> 244,830,700 | T140: =K140/E140*100 -> 184.4243793
A141: Belanja | E141: ='[1]3.LRA'!D39 -> 151,176,709,220 | K141: ='[1]3.LRA'!E39 -> 137,476,434,974 | P141: =K141-E141 -> (13,700,274,246) | T141: =K141/E141*100 -> 90.93757609
A142: Surplus/(Defisit) | E142: =E140-E141 -> (150,886,709,220) | K142: =K140-K141 -> (136,941,604,274) | P142: 13,945,104,946 | T142: =K142/E142*100 -> 90.75789709
A143: Pembiayaan
A144: Penerimaan Pembiayaan | E144: ='[1]3.LRA'!D110 -> 0 | K144: ='[1]3.LRA'!E110 -> 0 | P144: 0 | T144: 0
A145: Pengeluaran Pembiayaan | E145: ='[1]3.LRA'!D116 -> 0 | K145: ='[1]3.LRA'!E116 -> 0 | P145: 0 | T145: 0
A146: Pembiayaan Netto | E146: =E144-E145 -> 0 | K146: =K144-K145 -> 0 | P146: 0 | T146: 0
A147: SILPA | E147: =E142+E146 -> (150,886,709,220) | K147: =K142+K146 -> (136,941,604,274) | P147: 13,945,104,946 | T147: =K147/E147*100 -> 90.75789709
C150: Dari Tabel tersebut diatas dapat dilihat bahwa :
C151: 1. | D151: ="Pendapatan Tahun Anggaran "&'[1]2.ISIAN DATA SKPD'!D11&" dapat terealisasi sebesar Rp. "&FIXED(K140)&" atau "&FIXED(T140)&"% dari anggaran pendapatan yang telah ditetapkan sebesar Rp. "&FIXED(E140)&" atau lebih dari anggaran sebesar Rp."&FIXED(P140)&"." -> Pendapatan Tahun Anggaran 2017 dapat terealisasi sebesar Rp. 534,830,700.00 atau 184.42% dari anggaran pendapatan yang telah ditetapkan sebesar Rp. 290,000,000.00 atau lebih dari anggaran sebesar Rp.244,830,700.00.
C152: 2. | D152: ="Belanja Tahun Anggaran "&'[1]2.ISIAN DATA SKPD'!D11&" dapat terealisasi sebesar Rp. "&FIXED(K141)&" atau "&FIXED(T141)&"% dari anggaran belanja yang telah ditetapkan sebesar Rp. "&FIXED(E141)&" atau kurang dari anggaran sebesar Rp."&FIXED(P141)&"." -> Belanja Tahun Anggaran 2017 dapat terealisasi sebesar Rp. 137,476,434,974.00 atau 90.94% dari anggaran belanja yang telah ditetapkan sebesar Rp. 151,176,709,220.00 atau kurang dari anggaran sebesar Rp.-13,700,274,246.00.
C153: 3. | D153: ="Surplus/(defisit) anggaran untuk periode yang berakhir pada "&'[1]2.ISIAN DATA SKPD'!D10 &" adalah sebesar Rp. "&FIXED(K142) &" yang diperoleh dari realisasi pendapatan dikurangi realisasi belanja." -> Surplus/(defisit) anggaran untuk periode yang berakhir pada 31 Desember 2017 adalah sebesar Rp. -136,941,604,274.00 yang diperoleh dari realisasi pendapatan dikurangi realisasi belanja.
C154: 4. | D154: ="Pembiayaan Netto untuk periode yang berakhir pada "&'[1]2.ISIAN DATA SKPD'!D9 &" adalah sebesar Rp. "&FIXED(K146) &" atau mencapai "&FIXED(T146)&"% dari anggaran yang ditetapkan sebesar Rp. "&FIXED(E146)&"." -> Pembiayaan Netto untuk periode yang berakhir pada 31 Desember 2016 adalah sebesar Rp. 0.00 atau mencapai 0.00% dari anggaran yang ditetapkan sebesar Rp. 0.00.
C155: 5. | D155: ="SILPA untuk periode yang berakhir pada "&'[1]2.ISIAN DATA SKPD'!D10 &" mencapai sebesar Rp. "&FIXED(K147) &" naik sebesar Rp. "&FIXED(P147)&" dari tahun anggaran 2016 atau "&FIXED(T147)&"%." -> SILPA untuk periode yang berakhir pada 31 Desember 2017 mencapai sebesar Rp. -136,941,604,274.00 naik sebesar Rp. 13,945,104,946.00 dari tahun anggaran 2016 atau 90.76%.
B157: ="2.1.2. Realisasi TA "&'[1]2.ISIAN DATA SKPD'!D11&" Dibandingkan Dengan Realisasi TA "&'[1]2.ISIAN DATA SKPD'!D12&"" -> 2.1.2. Realisasi TA 2017 Dibandingkan Dengan Realisasi TA 2016
C158: ="Perbandingan realisasi Tahun Anggaran "&'[1]2.ISIAN DATA SKPD'!D11&" dengan realisasi Tahun Anggaran "&'[1]2.ISIAN DATA SKPD'!D12&" sebagaimana pada tabel berikut :" -> Perbandingan realisasi Tahun Anggaran 2017 dengan realisasi Tahun Anggaran 2016 sebagaimana pada tabel berikut :
A160: Uraian | E160: Realisasi TA 2017 | K160: Realisasi TA 2016 | P160: Naik/ (Turun) | T160: %
A161: Pendapatan dan Belanja
A162: Pendapatan | E162: =K140 -> 534,830,700 | K162: ='[1]3.LRA'!I18 -> 1,043,240,650 | P162: =E162-K162 -> (508,409,950) | T162: =(E162-K162)/K162*100 -> (48.73)
A163: Belanja | E163: =K141 -> 137,476,434,974 | K163: ='[1]3.LRA'!I39 -> 155,046,108,602 | P163: =E163-K163 -> (17,569,673,628) | T163: =(E163-K163)/K163*100 -> (11.33)
A164: Surplus/(Defisit) | E164: =E162-E163 -> (136,941,604,274) | K164: =K162-K163 -> (154,002,867,952) | P164: =P162-P163 -> 17,061,263,678 | T164: (11.08)
A165: Pembiayaan
A166: Penerimaan Pembiayaan | E166: =K144 -> 0 | K166: ='[1]3.LRA'!I110 -> 0 | P166: =E166-K166 -> 0 | T166: 0
A167: Pengeluaran Pembiayaan | E167: =K145 -> 0 | K167: ='[1]3.LRA'!I116 -> 0 | P167: =E167-K167 -> 0 | T167: 0
A168: Pembiayaan Netto | E168: =E166-E167 -> 0 | K168: =K166-K167 -> 0 | P168: =P166-P167 -> 0 | T168: 0
A169: SILPA | E169: =E164+E168 -> (136,941,604,274) | K169: =K164+K168 -> (154,002,867,952) | P169: =P164+Q168 -> 17,061,263,678 | T169: (11.08)
C171: 1. | D171: ="Realisasi Pendapatan Tahun Anggaran "&'[1]2.ISIAN DATA SKPD'!D11&" mengalami peningkatan/penurunan sebesar "&FIXED(T162)&"% dari Realisasi Pendapatan Tahun Anggaran "&'[1]2.ISIAN DATA SKPD'!D12&"." -> Realisasi Pendapatan Tahun Anggaran 2017 mengalami peningkatan/penurunan sebesar -48.73% dari Realisasi Pendapatan Tahun Anggaran 2016.
C172: 2. | D172: ="Realisasi Belanja Tahun Anggaran "&'[1]2.ISIAN DATA SKPD'!D11&" mengalami peningkatan/penurunan sebesar "&FIXED(T163)&"% dari Realisasi Belanja Tahun Anggaran "&'[1]2.ISIAN DATA SKPD'!D12&"." -> Realisasi Belanja Tahun Anggaran 2017 mengalami peningkatan/penurunan sebesar -11.33% dari Realisasi Belanja Tahun Anggaran 2016.
C173: 3 | D173: ="Pembiayaan Netto Tahun Anggaran "&'[1]2.ISIAN DATA SKPD'!D11&" mengalami peningkatan/penurunan sebesar "&FIXED('[1]2.ISIAN DATA SKPD'!D11)&"% dari Pembiayaan Netto Tahun Anggaran "&"." -> Pembiayaan Netto Tahun Anggaran 2017 mengalami peningkatan/penurunan sebesar 2,017.00% dari Pembiayaan Netto Tahun Anggaran .
C174: 4. | D174: ="SILPA Tahun Anggaran "&'[1]2.ISIAN DATA SKPD'!D11&" mengalami peningkatan/ penurunan sebesar "&FIXED(T169)&"% dibandingkan SILPA Tahun Anggaran "&'[1]2.ISIAN DATA SKPD'!D12&"." -> SILPA Tahun Anggaran 2017 mengalami peningkatan/ penurunan sebesar -11.08% dibandingkan SILPA Tahun Anggaran 2016.
B176: 2.1.3. Hambatan Dan Kendala Yang Dihadapi.
C177: 1. | D177: Hambatan dalam pencapaian target Pendapatan tidak diketemukan karena target yang sudah ditetapkan dapat terlampaui
C178: 2. | D178: Hambatan dalam pencapaian target Belanja dikarenakan mepetnya waktu pelaksanaan dan curah hujan yang cukup tinggi di akhir tahun 2017
A219: BAB III
A220: PENJELASAN POS-POS LAPORAN KEUANGAN
B222: 3.1. | C222: Laporan Realisaasi Anggaran (LRA)
C223: ="Laporan Realisasi Anggaran Tahun Anggaran "&'[1]2.ISIAN DATA SKPD'!D11&" menggambarkan perbandingan antara anggaran dengan realisasinya dalam satu periode pelaporan." -> Laporan Realisasi Anggaran Tahun Anggaran 2017 menggambarkan perbandingan antara anggaran dengan realisasinya dalam satu periode pelaporan.
B224: A. | C224: Pendapatan-LRA
C225: ="Realisasi Pendapatan untuk periode yang berakhir pada "&'[1]2.ISIAN DATA SKPD'!D8 &" adalah sebesar Rp. "&FIXED(J244) &" atau mencapai "&FIXED(V247)&" % dari estimasi pendapatan yang ditetapkan sebesar Rp. "&FIXED(D244)&" lebih dari anggaran sebesar Rp. "&FIXED('[1]3.LRA'!G18)&"." -> Realisasi Pendapatan untuk periode yang berakhir pada 31 Desember 2017 adalah sebesar Rp. 534,830,700.00 atau mencapai 184.42 % dari estimasi pendapatan yang ditetapkan sebesar Rp. 290,000,000.00 lebih dari anggaran sebesar Rp. 244,830,700.00.
C226: ="Pendapatan "&'[1]2.ISIAN DATA SKPD'!D2&" berasal dari Pendapatan Asli Daerah, Pendapatan Transfer dan Lain-lain Pendapatan Yang Sah. Rincian estimasi pendapatan dan realisasinya adalah sebagai berikut: " -> Pendapatan Dinas Pekerjaan Umum dan Penataan Ruang berasal dari Pendapatan Asli Daerah, Pendapatan Transfer dan Lain-lain Pendapatan Yang Sah. Rincian estimasi pendapatan dan realisasinya adalah sebagai berikut:
B228: ="Rincian Estimasi dan Realisasi Pendapatan Tahun "&'[1]2.ISIAN DATA SKPD'!D11&"" -> Rincian Estimasi dan Realisasi Pendapatan Tahun 2017
A229: Uraian | D229: ='[1]2.ISIAN DATA SKPD'!D11 -> 2017 | O229: ='[1]2.ISIAN DATA SKPD'!D12 -> 2016 | T229: % +/-
D230: Anggaran | J230: Realisasi | O230: Realisasi
A231: Pendapatan Asli Daerah | D231: =SUM(D232:I235) -> 290,000,000 | J231: =SUM(J232:N235) -> 534,830,700 | O231: =SUM(O232:S235) -> 1,043,240,650 | T231: =(J231-O231)/O231*100 -> (48.73)
A232: Pajak Daerah | D232: ='[1]3.LRA'!D20 -> 0 | J232: ='[1]3.LRA'!E20 -> 0 | O232: ='[1]3.LRA'!I20 -> 0
A233: Retribusi Daerah | D233: ='[1]3.LRA'!D21 -> 185,000,000 | J233: ='[1]3.LRA'!E21 -> 188,721,200 | O233: ='[1]3.LRA'!I21 -> 95,949,000 | T233: =(J233-O233)/O233*100 -> 96.69 | V233: % dari Ang | Y233: -/+ Angg | AB233: % dari Angg | AC233: -/+ 2016
A234: Hasil Pengelolaan Kekayaan Daerah Yang Dipisahkan | D234: ='[1]3.LRA'!D22 -> 0 | J234: ='[1]3.LRA'!E22 -> 0 | O234: ='[1]3.LRA'!I22 -> 223,926,000 | T234: =(J234-O234)/O234*100 -> (100.00) | V234: =J231/D231*100 -> 184.42 | Y234: =D231-J231 -> Rp(244,830,700) | AC234: =J231-O231 -> Rp(508,409,950)
A235: Lain-lain PAD yang sah | D235: ='[1]3.LRA'!D23 -> 105,000,000 | J235: ='[1]3.LRA'!E23 -> 346,109,500 | O235: ='[1]3.LRA'!I23 -> 723,365,650 | T235: =(J235-O235)/O235*100 -> (52.15) | V235: =J232/D232*100 ->  | Y235: 0 | AC235: 0
A236: Pendapatan Transfer | D236: =SUM(D237:J238) -> 0 | J236: =SUM(J237:O238) -> 0 | O236: =SUM(O237:S239) -> 0 | V236: 102.01 | Y236: Rp(3,721,200) | AC236: Rp92,772,200
A237: ='[1]3.LRA'!C28 -> Transfer Pemerintah Pusat ( Dana Perimbangan) | D237: ='[1]3.LRA'!D28 -> 0 | J237: ='[1]3.LRA'!E28 -> 0 | O237: ='[1]3.LRA'!I28 -> 0 | V237: =J234/D234*100 ->  | Y237: 0 | AC237: Rp(223,926,000)
A238: ='[1]3.LRA'!C29 -> Transfer Pemerintah Pusat Lainnya | D238: ='[1]3.LRA'!D29 -> 0 | J238: ='[1]3.LRA'!E29 -> 0 | O238: ='[1]3.LRA'!I29 -> 0 | V238: 329.63 | Y238: Rp(241,109,500) | AC238: Rp(377,256,150)
A239: ='[1]3.LRA'!C30 -> Transfer Pemerintah Profinsi | D239: ='[1]3.LRA'!D30 -> 0 | J239: ='[1]3.LRA'!E30 -> 0 | O239: ='[1]3.LRA'!I30 -> 0 | Y239: 0 | AC239: 0
A240: Lain-Lain Pendapatan Yang Sah | D240: =SUM(D241:J243) -> 0 | J240: =SUM(J241:O243) -> 0 | O240: =SUM(O241:S243) -> 0 | Y240: 0 | AC240: 0
A241: ='[1]3.LRA'!C32 -> Pendapatan Hibah | D241: ='[1]3.LRA'!D32 -> 0 | J241: ='[1]3.LRA'!E32 -> 0 | O241: ='[1]3.LRA'!I32 -> 0 | Y241: 0 | AC241: 0
A242: ='[1]3.LRA'!C33 -> Pendapatan Dana darurat | D242: ='[1]3.LRA'!D33 -> 0 | J242: ='[1]3.LRA'!E33 -> 0 | O242: ='[1]3.LRA'!I33 -> 0 | Y242: 0 | AC242: 0
A243: ='[1]3.LRA'!C34 -> Pendapatan Lainnya | D243: ='[1]3.LRA'!D34 -> 0 | J243: ='[1]3.LRA'!E34 -> 0 | O243: ='[1]3.LRA'!I34 -> 0 | Y243: 0 | AC243: 0
A244: Jumlah | D244: =D240+D236+D231 -> 290,000,000 | J244: =J240+J236+J231 -> 534,830,700 | O244: =O240+O236+O231 -> 1,043,240,650 | T244: =(J244-O244)/O244*100 -> (48.73) | Y244: 0 | AC244: 0
Y245: 0 | AC245: 0
C246: ="Realisasi Pendapatan TA "&'[1]2.ISIAN DATA SKPD'!D11&" mengalami penurunan sebesar "&FIXED('[1]3.LRA'!K18)&"% dibandingkan TA "&'[1]2.ISIAN DATA SKPD'!D12&" atau sebesar Rp. "&FIXED('[1]2.ISIAN DATA SKPD'!K16)&"" -> Realisasi Pendapatan TA 2017 mengalami penurunan sebesar -48.73% dibandingkan TA 2016 atau sebesar Rp. -508,409,950.00 | Y246: 0 | AC246: 0
C247: Realisasi masing-masing pendapatan secara rinci dapat dijelaskan sebagai berikut : | V247: 184.42 | Y247: Rp(244,830,700) | AC247: Rp(508,409,950)
C249: 1. | D249: Pendapatan Asli Daerah
D250: ="Realisasi Pendapatan Asli Daerah TA "&'[1]2.ISIAN DATA SKPD'!D11&" adalah sebesar Rp. "&FIXED(J244) &" atau mencapai "&FIXED(V247)&"% dari estimasi pendapatan yang ditetapkan sebesar Rp. "&FIXED(D244)&" lebih dari anggaran sebesar Rp. "&FIXED('[1]3.LRA'!G18)&"." -> Realisasi Pendapatan Asli Daerah TA 2017 adalah sebesar Rp. 534,830,700.00 atau mencapai 184.42% dari estimasi pendapatan yang ditetapkan sebesar Rp. 290,000,000.00 lebih dari anggaran sebesar Rp. 244,830,700.00.
D251: Adapun rincian masing-masing pendapatan asli daerah adalah sebagai berikut :
A253: Uraian | D253: =D229 -> 2017 | O253: ='[1]2.ISIAN DATA SKPD'!D12 -> 2016 | T253: % +/-
D254: Anggaran | J254: Realisasi | O254: Realisasi
A255: Pajak Daerah | D255: ='[1]3.LRA'!D20 -> 0 | J255: ='[1]3.LRA'!E20 -> 0 | O255: ='[1]3.LRA'!I20 -> 0
A256: Retribusi Daerah | D256: ='[1]3.LRA'!D21 -> 185,000,000 | J256: ='[1]3.LRA'!E21 -> 188,721,200 | O256: ='[1]3.LRA'!I21 -> 95,949,000 | T256: =(J256-O256)/O256*100 -> 96.69
A257: Hasil Pengelolaan Kekayaan Daerah Yang Dipisahkan | D257: ='[1]3.LRA'!D22 -> 0 | J257: ='[1]3.LRA'!E22 -> 0 | O257: ='[1]3.LRA'!I22 -> 223,926,000 | T257: =(J257-O257)/O257*100 -> (100.00)
A258: Lain-lain PAD yang sah | D258: =D259 -> 105,000,000 | J258: =J259 -> 346,109,500 | O258: =O259 -> 723,365,650 | T258: =(J258-O258)/O258*100 -> (52.15)
A259: - Pendapatan BLUD | D259: ='[1]3.LRA'!D23 -> 105,000,000 | J259: ='[1]3.LRA'!E23 -> 346,109,500 | O259: ='[1]3.LRA'!I23 -> 723,365,650 | T259: =(J259-O259)/O259*100 -> (52.15)
A260: Jumlah | D260: =SUM(D255:I258) -> 290,000,000 | J260: =SUM(J255:N258) -> 534,830,700 | O260: =SUM(O255:S258) -> 1,043,240,650 | T260: =(J260-O260)/O260*100 -> (48.73)
D262: ="Realisasi Pendapatan Asli Daerah TA "&'[1]2.ISIAN DATA SKPD'!D11&" sebesar Rp. "&FIXED('[1]3.LRA'!E18)&" mengalami penurunan sebesar "&FIXED('[1]3.LRA'!K18)&" % bila dibandingkan tahun anggaran "&'[1]2.ISIAN DATA SKPD'!D12 -> Realisasi Pendapatan Asli Daerah TA 2017 sebesar Rp. 534,830,700.00 mengalami penurunan sebesar -48.73 % bila dibandingkan tahun anggaran 2016
D264: a. | E264: Pajak Daerah
E265: ="Realisasi Pajak Daerah TA "&'[1]2.ISIAN DATA SKPD'!D11&" adalah sebesar Rp. "&FIXED(P278) &", adapun rincian Pajak Daerah sebagai berikut :" -> Realisasi Pajak Daerah TA 2017 adalah sebesar Rp. 0.00, adapun rincian Pajak Daerah sebagai berikut :
E267: No | G267: Pajak Daerah | P267: Realisasi
E268: 1 | G268: Pajak Hotel | P268: 0
E269: 2 | G269: Pajak Restoran | P269: 0
E270: 3 | G270: Pajak Hiburan | P270: 0
E271: 4 | G271: Pajak Reklame | P271: 0
E272: 5 | G272: Pajak Penerangan Jalan | P272: 0
E273: 6 | G273: Pajak Parkir | P273: 0
E274: 7 | G274: Pajak Air Tanah | P274: 0
E275: 8 | G275: Pajak Mineral Bukan Logam dan Batuan | P275: 0
E276: 9 | G276: Pajak Bumi dan Bangunan Pedesaaan dan Perkotaan | P276: 0
E277: 10 | G277: Bea Perolehan Hak Atas Tanah dan Bangunan | P277: 0
E278: Jumlah | P278: =SUM(P268:U277) -> 0
D280: b. | E280: Retribusi Daerah
E281: ="Realisasi Retribusi Daerah TA "&'[1]2.ISIAN DATA SKPD'!D11&" adalah sebesar Rp. "&FIXED(P290) &" Adapun rincian Retribusi Daerah sebagai berikut :" -> Realisasi Retribusi Daerah TA 2017 adalah sebesar Rp. 188,721,200.00 Adapun rincian Retribusi Daerah sebagai berikut :
E283: No | G283: Retribusi Daerah | P283: Realisasi
E284: 1 | G284: Retribusi Pelayanan Kesehatan | P284: 0
E285: 2 | G285: Retribusi Pelayanan Pasar | P285: 0
E286: 3 | G286: Retribusi Pemakaian Kekayaan Daerah | P286: =J256 -> 188,721,200
E287: 4 | G287: Retribusi Terminal | P287: 0
E288: 5 | G288: Retribusi Tempat Khusus Parkir | P288: 0
E289: 6 | G289: Retribusi Tempat Rekreasi dan Olah Raga | P289: 0
E290: Jumlah | P290: =SUM(P284:U289) -> 188,721,200
D292: c. | E292: Hasil Pengelolaan Kekayaan Daerah Yang Dipisahkan
E293: ="Realisasi Pengelolaan Kekayaan Daerah Yang Dipisahkan Daerah TA "&'[1]2.ISIAN DATA SKPD'!D11&" adalah sebesar Rp. "&FIXED(P298) &" Adapun rincian Retribusi Daerah sebagai berikut :" -> Realisasi Pengelolaan Kekayaan Daerah Yang Dipisahkan Daerah TA 2017 adalah sebesar Rp. 0.00 Adapun rincian Retribusi Daerah sebagai berikut :
E295: No | G295: Hasil Pengelolaan Kekayaan Daerah Yang Dipisahkan | P295: Realisasi
E296: 1 | G296: Bagian Laba Penyertaan Modal pada BUMD | P296: 0
... 1733 more rows
